bitfinex-derivatives/quotes_SOLF0:USTF0_20250829
["timestamp","ask_amount","ask_price","bid_price","bid_amount"]
[1756494683982,0.03669055,203.13,203.1,3.8421519]
[1756494684285,0.03669055,203.13,203.08,0.03097833]
[1756494684482,0.03669055,203.13,203.09,3.84523411]
[1756494684679,0.03669055,203.13,203.1,11.33523411]
[1756494684879,0.03669055,203.13,203.11,3.84523411]
[1756494685085,0.03669055,203.13,203.12,3.84523411]
[1756494685689,7.54669055,203.13,203.12,3.84523411]
[1756494685891,7.51,203.12,203.08,0.03097833]
[1756494686086,34.19669055,203.13,203.09,3.84631741]
[1756494686284,34.19669055,203.13,203.1,3.84631741]
[1756494686485,0.03669055,203.13,203.08,0.03097833]
[1756494686687,0.03669055,203.13,203.09,3.84911635]
[1756494686889,0.03669055,203.13,203.1,3.84911635]
[1756494687189,0.03669055,203.13,203.08,0.03097833]
[1756494687386,0.03669055,203.13,203.09,3.84719445]
[1756494687591,7.51,203.12,203.1,3.84719445]
[1756494687788,0.03669055,203.13,203.11,3.84669093]
[1756494687986,0.03669055,203.13,203.12,3.84669093]
[1756494689288,7.51,203.12,203.08,0.03097833]
[1756494689490,7.51,203.11,203.08,0.03097833]
[1756494689696,0.03669055,203.13,203.08,0.03097833]
[1756494690295,7.51,203.11,203.08,0.03097833]
[1756494690490,6.48677844,203.12,203.08,0.03097833]
[1756494691286,7.51,203.11,203.08,0.03097833]
[1756494691487,6.48677844,203.12,203.08,0.03097833]
[1756494691793,7.51,203.11,203.08,0.03097833]
[1756494691989,13.99677844,203.12,203.08,0.03097833]
[1756494692191,18.03669055,203.13,203.08,0.03097833]
[1756494692491,25.54669055,203.13,203.08,0.03097833]
[1756494692892,7.51,203.11,203.08,0.03097833]
[1756494693093,13.99677844,203.09,203.08,0.03097833]
[1756494693687,13.99677844,203.09,203.01,11.521114]
[1756494693887,13.99677844,203.09,203.01,7.49]
[1756494694995,0.03104237,203.07,203.01,7.49]
[1756494695885,0.03104237,203.07,203.0,4.031114]
[1756494696087,0.03104237,203.07,202.95,4.031114]
[1756494696088,6.48677844,203.03,202.95,4.031114]
[1756494696293,6.48677844,203.0,202.94,4.031114]
[1756494696493,6.48677844,203.0,202.93,4.031114]
[1756494696698,13.99677844,203.04,202.94,4.031114]
[1756494696894,0.03631837,202.99,202.94,4.031114]
[1756494697095,0.03631837,202.99,202.97,7.61]
[1756494697296,0.03631837,202.99,202.95,11.641114]
[1756494697502,0.03631837,202.99,202.96,7.61]
[1756494698196,0.03631837,202.99,202.95,4.031114]
[1756494698900,0.03631837,202.99,202.96,7.61]
[1756494699694,0.03631837,202.99,202.95,4.031114]
[1756494700103,0.03631837,202.99,202.96,7.61]
[1756494700303,0.03631837,202.99,202.94,4.031114]
[1756494700501,0.03631837,202.99,202.93,4.031114]
[1756494701302,0.03631837,202.99,202.95,7.61]
[1756494701493,0.03631837,202.99,202.96,11.46122942]
[1756494701696,0.03631837,202.99,202.97,3.85122942]
[1756494701998,0.03631837,202.99,202.98,11.45967645]
[1756494702995,0.03631837,202.99,202.98,3.84967645]
[1756494703300,7.59631837,202.99,202.93,7.61]
[1756494703500,7.59631837,202.99,202.94,3.85043628]
[1756494703700,0.03631837,202.99,202.95,11.46043628]
[1756494703897,0.03631837,202.99,202.96,3.85043628]
[1756494704103,0.03631837,202.99,202.97,3.85043628]
[1756494704301,0.03631837,202.99,202.98,11.46043628]
[1756494705200,7.56,203.09,202.98,16.01184016]
[1756494705400,7.56,203.09,202.99,3.85043628]
[1756494705604,7.56,203.09,202.95,5.455579]
[1756494705605,7.56,203.09,203.01,7.61]
[1756494705800,6.48677844,203.13,203.02,3.85043628]
[1756494706003,7.56,203.14,203.04,7.61]
[1756494706194,458.98,203.15,203.05,3.85043628]
[1756494706402,458.98,203.15,203.07,7.61]
[1756494706603,458.98,203.15,203.08,3.85043628]
[1756494706796,458.98,203.15,203.09,3.85043628]
[1756494706996,458.98,203.15,203.1,11.46043628]
[1756494707204,466.54,203.15,203.11,3.85043628]
[1756494707402,338.48,203.15,203.1,7.61]
[1756494707604,338.48,203.15,203.11,3.84411707]
[1756494707806,338.48,203.15,203.1,7.61]
[1756494708110,338.48,203.15,203.11,3.84437801]
[1756494708308,338.48,203.15,203.1,7.61]
[1756494708508,338.48,203.15,203.11,3.84675615]
[1756494708704,338.48,203.15,203.1,7.61]
[1756494709009,338.48,203.15,203.11,3.84658932]
[1756494709204,338.48,203.15,203.12,3.84911206]
[1756494709404,338.48,203.15,203.1,7.61]
[1756494709604,338.48,203.15,203.11,3.84843191]
[1756494709804,338.48,203.15,203.1,7.61]
[1756494710004,338.48,203.15,203.11,3.84843283]
[1756494710205,338.48,203.15,203.12,3.85212706]
[1756494710405,330.92,203.15,203.07,4.05140388]
[1756494710603,330.92,203.15,203.08,3.85212809]
[1756494710801,6.48677844,203.12,203.09,3.85212809]
[1756494711009,135.6,203.11,203.02,11.66140388]
[1756494711308,128.04,203.1,203.03,7.90497162]
[1756494711510,128.04,203.1,203.04,3.85356774]
[1756494711698,128.04,203.1,203.03,4.05140388]
[1756494711699,128.04,203.1,203.05,3.85356774]
[1756494711899,7.56,203.09,203.06,3.85356774]
[1756494712105,7.56,203.09,203.07,3.85356774]
[1756494712306,7.56,203.09,203.02,11.66140388]
[1756494712503,7.56,203.09,203.03,3.85447705]
[1756494712704,7.56,203.09,203.04,3.85447705]
[1756494712906,7.56,203.09,203.05,3.85447705]
[1756494713211,7.56,203.09,203.06,3.85447705]
[1756494713508,7.56,203.09,203.07,3.85447705]
[1756494713704,7.56,203.09,203.02,4.05140388]
[1756494713908,7.56,203.09,203.03,3.85510768]
[1756494714108,7.56,203.09,203.04,3.85510768]
[1756494714407,128.04,203.1,203.05,3.85510768]
[1756494714610,7.56,203.09,203.06,3.85510768]
[1756494714809,14.04677844,203.09,203.02,4.05140388]
[1756494715004,14.04677844,203.09,203.03,3.85709183]
[1756494715304,7.56,203.08,203.04,3.85709183]
[1756494715506,7.56,203.08,203.05,3.85798452]
[1756494715703,14.04677844,203.09,203.0,4.05140388]
[1756494715907,14.04677844,203.09,203.01,3.85767416]
[1756494716108,14.04677844,203.09,203.02,3.85767416]
[1756494716304,6.48677844,203.06,203.03,3.85767416]
[1756494716507,7.56,203.05,202.96,4.05140388]
[1756494716710,6.48677844,203.03,202.97,3.85983899]
[1756494716912,7.56,203.02,202.98,3.85983899]
[1756494717115,7.56,203.02,202.99,3.85983899]
[1756494717305,128.02,203.01,202.95,11.66140388]
[1756494717516,7.56,202.99,202.96,3.86082845]
[1756494717713,7.56,202.99,202.91,11.66140388]
[1756494718008,7.56,202.99,202.92,3.86315066]
[1756494718210,7.56,202.99,202.93,3.86315066]
[1756494718411,7.56,202.99,202.94,3.86315066]
[1756494718615,7.56,202.99,202.95,3.86315066]
[1756494718815,7.56,202.99,202.91,11.66140388]
[1756494719015,7.56,202.99,202.92,3.86281124]
[1756494719315,7.56,202.99,202.93,3.86281124]
[1756494719512,7.56,202.99,202.94,3.86281124]
[1756494719713,128.02,202.98,202.95,3.86281124]
[1756494719913,128.02,202.98,202.91,11.66140388]
[1756494720111,128.02,202.98,202.92,3.86231072]
[1756494720315,135.58,202.98,202.93,3.86231072]
[1756494720518,135.58,202.98,202.94,3.86231072]
[1756494720714,14.76,203.14,202.95,3.86231072]
[1756494720715,14.79,203.14,202.95,3.86231072]
[1756494721019,14.04677844,203.07,202.96,3.86231072]
[1756494721213,128.04,203.06,202.97,15.5237146]
[1756494721416,128.04,203.06,202.98,7.9137146]
[1756494721613,128.04,203.06,202.99,3.86231072]
[1756494721818,128.04,203.06,203.0,3.86231072]
[1756494722020,128.04,203.06,203.01,3.86231072]
[1756494722317,128.04,203.06,203.02,3.86231072]
[1756494722516,128.04,203.06,203.01,7.61]
[1756494722713,7.56,203.1,203.02,3.86098675]
[1756494722919,96.06,203.09,203.03,3.86098675]
[1756494723122,7.56,203.1,203.04,3.86098675]
[1756494723320,7.56,203.1,203.05,11.47098675]
[1756494723321,128.04,203.09,203.05,11.47098675]
[1756494723517,128.04,203.09,203.06,3.86098675]
[1756494723817,128.04,203.09,202.98,4.05140388]
[1756494724012,14.04677844,203.1,202.99,3.86220592]
[1756494724215,7.56,203.08,203.0,3.86220592]
[1756494724421,7.56,203.08,203.01,3.86220592]
[1756494724615,7.56,203.08,203.02,3.86220592]
[1756494724818,7.56,203.08,203.03,3.86320089]
[1756494725012,7.56,203.08,202.97,11.66140388]
[1756494725219,7.56,203.08,202.98,3.86200629]
[1756494725417,7.56,203.08,202.99,3.86200629]
[1756494725618,7.56,203.08,203.0,3.86200629]
[1756494725813,7.56,203.08,203.01,3.86200629]
[1756494726018,7.56,203.08,203.02,3.86200629]
[1756494726221,7.56,203.08,202.97,11.66140388]
[1756494726418,128.02,203.07,202.99,4.05140388]
[1756494726623,128.02,203.07,203.0,7.91462814]
[1756494726822,128.02,203.07,203.01,3.86322426]
[1756494727026,7.92,203.06,203.02,3.86322426]
[1756494727322,7.92,203.06,203.03,3.86322426]
[1756494727518,7.92,203.06,202.99,4.05140388]
[1756494727823,62.94,203.07,203.0,3.86475622]
[1756494728023,62.94,203.07,203.01,3.86475622]
[1756494728221,70.86,203.07,203.02,3.86475622]
[1756494728420,7.92,203.06,203.03,3.86475622]
[1756494728720,7.92,203.06,202.98,4.05140388]
[1756494728926,7.92,203.06,202.99,3.86664627]
[1756494729227,7.92,203.06,203.0,3.86664627]
[1756494729421,69.42677844,203.07,203.01,3.86664627]
[1756494729622,7.92,203.06,202.97,7.6]
[1756494729926,7.92,203.06,202.98,3.87153492]
[1756494730126,128.02,203.06,202.99,3.87153492]
[1756494730320,128.02,203.06,203.0,3.87153492]
[1756494730522,128.02,203.06,203.01,11.47153492]
[1756494730722,128.02,203.06,203.02,3.87153492]
[1756494730919,7.92,203.11,203.02,3.87153492]
[1756494730920,128.02,203.09,203.03,3.87153492]
[1756494731117,128.02,203.09,203.04,11.47153492]
[1756494731318,135.94,203.09,203.05,3.87153492]
[1756494731623,135.94,203.09,203.04,7.6]
[1756494731823,135.94,203.09,203.05,3.87068929]
[1756494732020,135.94,203.09,203.01,4.05140388]
[1756494732225,135.94,203.09,203.02,3.86848226]
[1756494732423,135.94,203.09,203.03,3.86848226]
[1756494732723,135.94,203.09,203.04,3.86848226]
[1756494733029,135.92,203.16,203.06,4.05140388]
[1756494733230,128.0,203.15,203.07,3.86848226]
[1756494733428,128.0,203.15,203.08,3.86848226]
[1756494733628,128.0,203.15,203.09,3.86848226]
[1756494733828,128.0,203.15,203.05,7.6]
[1756494734034,128.0,203.15,203.06,3.86725899]
[1756494734219,128.0,203.15,203.07,3.86725899]
[1756494734420,128.0,203.15,203.08,3.86725899]
[1756494734627,128.0,203.14,203.09,3.86725899]
[1756494734824,135.92,203.13,203.1,3.86725899]
[1756494735021,135.92,203.13,203.05,11.65140388]
[1756494735224,135.92,203.13,203.06,3.86583954]
[1756494735425,135.92,203.13,203.07,3.86583954]
[1756494735730,135.92,203.13,203.08,3.86583954]
[1756494735930,7.92,203.13,203.09,3.86583954]
[1756494736229,7.92,203.13,203.1,3.86583954]
[1756494736430,7.92,203.17,203.06,4.05140388]
[1756494736624,127.98,203.16,203.07,7.91408269]
[1756494736929,127.98,203.16,203.08,3.86267881]
[1756494737126,127.98,203.16,203.09,3.86267881]
[1756494737329,127.98,203.16,203.1,3.86267881]
[1756494737523,7.92,203.15,203.05,7.6]
[1756494737721,7.92,203.15,203.06,3.86280674]
[1756494738031,7.92,203.15,203.07,3.86280674]
[1756494738234,7.92,203.15,203.02,4.05140388]
[1756494738432,7.92,203.15,203.03,3.86333559]
[1756494738627,7.92,203.12,203.04,3.86333559]
[1756494738827,7.92,203.12,203.05,3.86333559]
[1756494739025,7.92,203.12,203.06,3.86333559]
[1756494739222,7.92,203.12,203.02,4.05140388]
[1756494739532,7.92,203.12,203.03,3.86271851]
[1756494739728,7.92,203.12,203.04,3.86271851]
[1756494739929,7.92,203.12,203.05,3.86271851]
[1756494740124,7.92,203.12,203.06,3.86271851]
[1756494740325,7.92,203.12,203.0,4.05140388]
[1756494740527,127.96,203.11,203.01,3.86383012]
[1756494740731,7.92,203.12,203.02,3.86383012]
[1756494740932,127.96,203.11,203.03,3.86383012]
[1756494741132,127.96,203.11,203.04,3.86383012]
[1756494741333,127.96,203.11,203.05,3.86383012]
[1756494741527,6.48677844,203.15,203.06,3.86383012]
[1756494741731,7.92,203.16,203.08,7.6]
[1756494742030,7.92,203.16,203.09,3.86383012]
[1756494742233,7.92,203.16,203.1,3.86383012]
[1756494742533,7.92,203.16,203.11,3.86383012]
[1756494742832,63.64,203.18,203.12,3.86383012]
[1756494743028,7.92,203.17,203.13,3.86383012]
[1756494743229,7.92,203.17,203.09,7.6]
[1756494743429,7.92,203.17,203.1,3.85858643]
[1756494743627,7.92,203.17,203.11,3.85858643]
[1756494743931,127.96,203.18,203.12,3.85858643]
[1756494744131,127.96,203.18,203.13,3.85858643]
[1756494744333,135.88,203.18,203.1,7.6]
[1756494744532,135.88,203.18,203.11,3.85620299]
[1756494744833,7.92,203.18,203.12,3.85620299]
[1756494745033,7.92,203.18,203.13,3.85620299]
[1756494745234,7.92,203.18,203.1,7.6]
[1756494745433,127.96,203.19,203.11,3.85576555]
[1756494745632,127.96,203.19,203.12,3.85576555]
[1756494745834,127.96,203.19,203.13,3.85576555]
[1756494746033,14.79,203.26,203.13,3.85576555]
[1756494746034,7.92,203.32,203.14,11.45576555]
[1756494746338,135.86,203.31,203.17,11.65140388]
[1756494746626,135.86,203.31,203.18,3.85576555]
[1756494746833,135.86,203.31,203.19,3.85576555]
[1756494747133,135.86,203.31,203.2,3.85576555]
[1756494747435,135.86,203.31,203.21,3.85576555]
[1756494747631,135.86,203.31,203.17,7.6]
[1756494747823,135.86,203.31,203.18,3.84679235]
[1756494748025,135.86,203.31,203.19,3.84679235]
[1756494748227,7.92,203.29,203.2,3.84679235]
[1756494748425,7.92,203.29,203.17,7.6]
[1756494748635,7.92,203.29,203.18,3.84627383]
[1756494748830,7.92,203.29,203.19,3.84627383]
[1756494749029,7.92,203.29,203.17,7.6]
[1756494749230,7.92,203.29,203.18,3.84609797]
[1756494749430,7.92,203.29,203.19,3.84609797]
[1756494749625,7.92,203.29,203.2,3.84609797]
[1756494749830,7.92,203.29,203.17,7.6]
[1756494750030,7.92,203.29,203.18,3.84462566]
[1756494750227,7.92,203.29,203.19,3.84462566]
[1756494750429,7.92,203.29,203.15,4.05140388]
[1756494750632,7.92,203.23,203.16,3.84361969]
[1756494750831,7.92,203.21,203.12,7.6]
[1756494751035,7.92,203.21,203.13,3.84554221]
[1756494751234,7.92,203.21,203.14,3.84554221]
[1756494751429,7.92,203.21,203.15,3.84554221]
[1756494751633,7.92,203.21,203.12,7.6]
[1756494751833,7.92,203.21,203.13,3.8446219]
[1756494752139,7.92,203.21,203.14,3.8446219]
[1756494752338,7.92,203.21,203.15,3.8446219]
[1756494752638,7.92,203.21,203.12,7.6]
[1756494752936,7.92,203.21,203.13,3.84403297]
[1756494753137,7.92,203.21,203.14,3.84403297]
[1756494753327,7.92,203.21,203.15,3.84403297]
[1756494753528,7.92,203.21,203.16,3.84302787]
[1756494753835,61.58,203.23,203.17,3.8423095]
[1756494754036,61.58,203.23,203.12,11.65140388]
[1756494754334,61.58,203.23,203.13,3.84244503]
[1756494754530,7.92,203.22,203.14,3.84244503]
[1756494754738,7.92,203.22,203.15,3.84244503]
[1756494755035,7.92,203.22,203.16,3.84244503]
[1756494755338,7.92,203.22,203.12,7.6]
[1756494755540,7.92,203.22,203.13,3.84245319]
[1756494755739,7.92,203.22,203.14,3.84245319]
[1756494755939,7.92,203.22,203.15,3.84245319]
[1756494756140,7.92,203.22,203.16,3.84245319]
[1756494756340,7.92,203.22,203.12,4.05140388]
[1756494756541,7.92,203.22,203.13,11.44132396]
[1756494756740,7.92,203.22,203.14,3.84132396]
[1756494756936,7.92,203.22,203.15,3.84132396]
[1756494757240,7.92,203.22,203.16,3.84132396]
[1756494757442,7.92,203.22,203.17,3.84132396]
[1756494757640,7.92,203.22,203.13,7.6]
[1756494757833,7.92,203.22,203.14,3.84014114]
[1756494758038,7.92,203.22,203.15,3.84014114]
[1756494758235,7.92,203.22,203.16,3.84014114]
[1756494758439,7.92,203.22,203.13,7.6]
[1756494758638,7.92,203.22,203.14,3.83841584]
[1756494758843,7.92,203.22,203.15,3.83841584]
[1756494759141,7.92,203.22,203.16,3.83841584]
[1756494759341,7.92,203.22,203.13,7.6]
[1756494759537,7.92,203.22,203.14,3.83754994]
[1756494759738,7.92,203.22,203.15,3.83754994]
[1756494759934,7.92,203.22,203.16,3.83754994]
[1756494760134,7.92,203.22,203.13,7.6]
[1756494760333,7.92,203.22,203.14,3.83727828]
[1756494760544,7.92,203.22,203.15,3.83727828]
[1756494760750,6.48677844,203.27,203.16,3.83727828]
[1756494761042,6.48677844,203.27,203.12,4.05140388]
[1756494761043,7.38,203.27,203.17,11.68727828]
[1756494761237,7.38,203.27,203.18,3.83727828]
[1756494761441,7.38,203.27,203.19,3.83727828]
[1756494761743,7.38,203.27,203.17,7.85]
[1756494761941,7.38,203.27,203.18,3.83298833]
[1756494762143,7.38,203.27,203.19,3.83298833]
[1756494762340,7.38,203.27,203.2,3.83298833]
[1756494762537,7.38,203.27,203.17,7.85]
[1756494762846,7.38,203.27,203.18,3.83549706]
[1756494763045,7.38,203.27,203.19,3.83549706]
[1756494763345,7.38,203.27,203.2,3.83549706]
[1756494763646,7.38,203.27,203.17,7.85]
[1756494763842,7.38,203.27,203.18,3.83664734]
[1756494764043,7.38,203.27,203.19,3.83664734]
[1756494764243,7.38,203.27,203.2,3.83664734]
[1756494764441,7.38,203.27,203.17,7.85]
[1756494764641,7.38,203.27,203.18,3.83812822]
[1756494764844,7.38,203.27,203.19,3.83812822]
[1756494765042,7.38,203.27,203.2,3.83812822]
[1756494765243,7.38,203.27,203.17,7.85]
[1756494765444,7.38,203.27,203.18,3.83736641]
[1756494765646,7.38,203.27,203.19,3.83736641]
[1756494765949,7.38,203.27,203.2,3.83736641]
[1756494766247,7.38,203.27,203.21,3.83694392]
[1756494766447,7.38,203.27,203.17,7.85]
[1756494766747,7.38,203.27,203.18,3.83737827]
[1756494766946,7.38,203.27,203.19,3.83737827]
[1756494767149,7.38,203.27,203.2,3.83737827]
[1756494767345,7.38,203.27,203.21,3.83737827]
[1756494767647,7.38,203.27,203.18,4.06796065]
[1756494767838,7.38,203.27,203.19,3.83759384]
[1756494768044,7.38,203.27,203.2,3.83759384]
[1756494768250,7.38,203.27,203.21,3.83759384]
[1756494768447,7.38,203.27,203.18,4.06796065]
[1756494768646,7.38,203.27,203.19,3.83706286]
[1756494768943,7.38,203.27,203.2,3.83706286]
[1756494769144,7.38,203.27,203.21,3.83706286]
[1756494769350,7.38,203.27,203.23,7.85]
[1756494770547,7.38,203.27,203.18,4.05140388]
[1756494770747,7.38,203.27,203.19,3.83726608]
[1756494770948,7.38,203.27,203.2,3.83726608]
[1756494771149,7.38,203.27,203.21,3.83726608]
[1756494771347,7.38,203.28,203.22,3.83726608]
[1756494771546,7.38,203.28,203.23,3.83726608]
[1756494771851,4.06796065,203.29,203.24,3.83726608]
[1756494772053,7.38,203.28,203.18,11.90140388]
[1756494772352,7.38,203.28,203.19,7.88959567]
[1756494772652,7.38,203.28,203.2,3.83819179]
[1756494772947,7.38,203.28,203.21,3.83819179]
[1756494773146,7.38,203.28,203.22,3.83819179]
[1756494773348,7.38,203.28,203.23,3.83819179]
[1756494773550,7.38,203.28,203.18,11.90140388]
[1756494773751,7.38,203.28,203.19,3.84076931]
[1756494774052,7.38,203.28,203.18,11.90140388]
[1756494774053,7.38,203.28,203.2,3.84076931]
[1756494774252,7.38,203.28,203.21,3.84076931]
[1756494774454,7.38,203.28,203.18,11.90140388]
[1756494774455,7.38,203.28,203.22,3.84076931]
[1756494774655,7.38,203.28,203.23,3.84076931]
[1756494774858,7.38,203.28,203.18,7.85]
[1756494775052,4.06796065,203.26,203.19,3.84098477]
[1756494775356,4.06796065,203.3,203.2,3.84098477]
[1756494775357,4.06796065,203.23,203.2,3.84098477]
[1756494775556,4.06796065,203.23,203.15,4.05140388]
[1756494775557,7.38,203.22,203.15,4.05140388]
[1756494775851,7.38,203.22,203.16,3.84400531]
[1756494776151,4.06796065,203.23,203.17,3.84400531]
[1756494776357,7.38,203.19,203.18,3.84400531]
[1756494776557,7.38,203.19,203.12,4.05140388]
[1756494776757,7.38,203.19,203.13,3.8458724]
[1756494776952,4.06796065,203.2,203.14,3.8458724]
[1756494777147,4.06796065,203.2,203.15,3.8458724]
[1756494777457,4.06796065,203.2,203.16,3.8458724]
[1756494777655,4.06796065,203.2,203.17,3.8458724]
[1756494777855,7.38,203.19,203.12,4.05140388]
[1756494778056,7.38,203.19,203.13,3.84499855]
[1756494778256,11.44796065,203.2,203.14,3.84499855]
[1756494778457,4.06796065,203.2,203.15,3.84499855]
[1756494778656,4.06796065,203.2,203.16,3.84499855]
[1756494778857,4.06796065,203.2,203.17,3.84499855]
[1756494779159,7.38,203.19,203.11,4.05140388]
[1756494779357,7.38,203.19,203.12,3.84860762]
[1756494779557,7.38,203.19,203.13,3.84860762]
[1756494779760,11.44796065,203.2,203.14,3.84860762]
[1756494779961,33.04796065,203.2,203.15,3.84860762]
[1756494780161,33.04796065,203.2,203.16,3.84860762]
[1756494780359,11.44796065,203.22,203.17,3.84947258]
[1756494780662,4.06796065,203.24,203.18,3.84882519]
[1756494780858,4.06796065,203.24,203.19,3.84882519]
[1756494781062,4.06796065,203.24,203.15,7.85]
[1756494781258,4.06796065,203.24,203.16,3.84696657]
[1756494781460,4.06796065,203.24,203.15,7.85]
[1756494781461,4.06796065,203.24,203.17,3.84696657]
[1756494781758,4.06796065,203.24,203.18,3.84696657]
[1756494781964,4.06796065,203.21,203.19,3.84909865]
[1756494782163,4.06796065,203.21,203.15,7.85]
[1756494782460,4.06796065,203.21,203.16,11.70015567]
[1756494782664,11.44796065,203.21,203.17,3.85015567]
[1756494782960,11.44796065,203.21,203.18,3.84911357]
[1756494783155,11.44796065,203.21,203.16,7.85]
[1756494783365,11.44796065,203.21,203.17,11.70108156]
[1756494783561,11.44796065,203.21,203.18,3.85108156]
[1756494783769,7.38,203.2,203.19,3.85108156]
[1756494783966,7.38,203.2,203.13,4.0518134]
[1756494784167,7.38,203.2,203.14,3.85194346]
[1756494784367,7.38,203.2,203.16,7.85]
[1756494784564,7.38,203.2,203.17,3.85194346]
[1756494784770,4.06796065,203.21,203.18,3.85194346]
[1756494784966,11.44796065,203.21,203.12,11.9018134]
[1756494785172,11.44796065,203.21,203.13,3.85519644]
[1756494785477,7.38,203.17,203.14,3.85519644]
[1756494785677,4.06796065,203.18,203.15,3.85519644]
[1756494785874,7.38,203.17,203.16,3.85519644]
[1756494787073,7.38,203.17,203.1,4.0518134]
[1756494787275,7.86,203.14,203.11,3.86445099]
[1756494787470,7.86,203.14,203.12,3.86445099]
[1756494787674,7.86,203.14,203.13,3.86445099]
[1756494787976,4.06796065,203.17,203.13,3.86445099]
[1756494788179,11.92796065,203.17,203.11,7.74]
[1756494788375,4.06796065,203.17,203.12,3.86457269]
[1756494788574,7.86,203.16,203.13,3.86457269]
[1756494788778,7.86,203.16,203.14,3.86457269]
[1756494789078,7.86,203.16,203.11,7.74]
[1756494789279,4.06796065,203.14,203.12,3.86323027]
[1756494789480,4.06796065,203.14,203.13,3.86323027]
[1756494790479,11.92796065,203.14,203.13,3.86323027]
[1756494790681,11.92796065,203.14,203.07,11.7918134]
[1756494790877,11.92796065,203.14,203.08,3.86474695]
[1756494791179,7.86,203.13,203.09,3.86474695]
[1756494791379,7.86,203.13,203.1,3.86474695]
[1756494791580,7.86,203.13,203.11,3.86474695]
[1756494791780,7.86,203.13,203.07,11.7918134]
[1756494791977,11.92796065,203.14,203.08,3.86374694]
[1756494792183,11.92796065,203.14,203.09,11.60374694]
[1756494792385,11.92796065,203.14,203.1,3.86374694]
[1756494792682,11.92796065,203.14,203.11,3.86374694]
[1756494792875,11.92796065,203.14,203.09,7.74]
[1756494793074,11.92796065,203.14,203.1,3.86080266]
[1756494793281,11.92796065,203.14,203.09,7.74]
[1756494793282,11.92796065,203.14,203.11,3.86080266]
[1756494793481,11.92796065,203.14,203.09,7.74]
[1756494793785,11.92796065,203.14,203.1,3.85844168]
[1756494793980,11.92796065,203.14,203.11,3.85844168]
[1756494794181,11.92796065,203.14,203.09,7.74]
[1756494794388,11.92796065,203.14,203.1,3.85703998]
[1756494794589,11.92796065,203.14,203.09,7.74]
[1756494794786,11.92796065,203.14,203.1,3.8568744]
[1756494794983,0.856974,203.17,203.11,11.59659669]
[1756494795188,0.856974,203.17,203.13,7.74]
[1756494795388,8.716974,203.17,203.09,7.74]
[1756494795589,8.716974,203.17,203.1,3.85524179]
[1756494795787,8.716974,203.17,203.11,3.85524179]
[1756494795988,8.716974,203.17,203.12,3.85524179]
[1756494796191,8.716974,203.17,203.13,3.85524179]
[1756494796490,8.716974,203.17,203.12,7.74]
[1756494796692,8.716974,203.17,203.13,3.85583519]
[1756494796888,8.716974,203.17,203.12,7.74]
[1756494797088,8.716974,203.17,203.13,3.85583519]
[1756494797289,0.8931629,203.17,203.12,0.0326937]
[1756494797593,0.0361889,203.17,203.13,3.85564512]
[1756494797787,0.0361889,203.17,203.15,7.74]
[1756494797986,0.0361889,203.17,203.16,3.85564512]
[1756494798385,0.0361889,203.17,203.16,11.59564512]
[1756494798589,0.0361889,203.17,203.16,3.85564512]
[1756494799592,0.0361889,203.17,203.16,11.59564512]
[1756494800193,0.0361889,203.17,203.16,3.85564512]
[1756494800586,0.0361889,203.17,203.16,11.59564512]
[1756494800791,0.0361889,203.17,203.16,16.14745852]
[1756494800992,0.0361889,203.17,203.16,12.09564512]
[1756494801691,0.0361889,203.17,203.16,11.59564512]
[1756494801897,4.06796065,203.26,203.17,7.74]
[1756494802096,0.85654159,203.27,203.19,7.74]
[1756494802399,0.85654159,203.27,203.2,3.85564512]
[1756494802699,0.85654159,203.27,203.21,3.85564512]
[1756494802991,0.85654159,203.27,203.19,7.74]